[Event "Titled Tuesday Blitz June 29 2021"]
[White "ozates"]
[Black "NTBT_DHS"]
[WhiteElo "2533"]
[BlackElo "2716"]
[Result "1/2-1/2"]
[Round "11"]
[TimeControl "180+1"]
[Date "2021.06.29"]
[WhiteClock "0:00:10"]
[BlackClock "0:00:10"]

1. e4 {[%clk 0:03:00]}  c6 {[%clk 0:02:59]} 2. d4 {[%clk 0:03:00]}  d5 {[%clk 0:03:00]} 3. e5 {[%clk 0:03:01]}  Bf5 {[%clk 0:03:00]} 4. Nf3 {[%clk 0:03:00]}  e6 {[%clk 0:02:59]} 5. Be2 {[%clk 0:03:01]}  Nd7 {[%clk 0:02:59]} 6. c3 {[%clk 0:03:01]}  Be7 {[%clk 0:02:58]} 7. Be3 {[%clk 0:03:01]}  g5 {[%clk 0:02:58]} 8. h3 {[%clk 0:02:57]}  h6 {[%clk 0:02:58]} 9. Nbd2 {[%clk 0:02:57]}  f6 {[%clk 0:02:58]} 10. exf6 {[%clk 0:02:56]}  Ngxf6 {[%clk 0:02:59]} 11. Ne5 {[%clk 0:02:50]}  Nxe5 {[%clk 0:02:59]} 12. dxe5 {[%clk 0:02:50]}  Nd7 {[%clk 0:02:56]} 13. Bh5+ {[%clk 0:02:49]}  Kf8 {[%clk 0:02:56]} 14. f4 {[%clk 0:02:44]}  Bc5 {[%clk 0:02:55]} 15. Bxc5+ {[%clk 0:02:36]}  Nxc5 {[%clk 0:02:56]} 16. O-O {[%clk 0:02:37]}  Kg7 {[%clk 0:02:50]} 17. Nf3 {[%clk 0:02:29]}  gxf4 {[%clk 0:02:36]} 18. Nd4 {[%clk 0:02:27]}  Qg5 {[%clk 0:02:36]} 19. b4 {[%clk 0:01:23]}  Bxh3 {[%clk 0:02:26]} 20. Bf3 {[%clk 0:01:21]}  Ne4 {[%clk 0:02:23]} 21. Qc2 {[%clk 0:01:13]}  Bf5 {[%clk 0:02:23]} 22. Bxe4 {[%clk 0:01:10]}  dxe4 {[%clk 0:02:22]} 23. Rae1 {[%clk 0:01:06]}  Rae8 {[%clk 0:02:18]} 24. Qd2 {[%clk 0:00:42]}  e3 {[%clk 0:02:10]} 25. Nxf5+ {[%clk 0:00:38]}  exf5 {[%clk 0:02:04]} 26. Qd4 {[%clk 0:00:38]}  Kh7 {[%clk 0:01:48]} 27. Rxf4 {[%clk 0:00:34]}  Rhg8 {[%clk 0:01:48]} 28. Re2 {[%clk 0:00:34]}  Re7 {[%clk 0:01:47]} 29. Qxe3 {[%clk 0:00:30]}  Rd8 {[%clk 0:01:44]} 30. Qf3 {[%clk 0:00:29]}  Rd1+ {[%clk 0:01:40]} 31. Kf2 {[%clk 0:00:28]}  Re6 {[%clk 0:01:33]} 32. Rxf5 {[%clk 0:00:20]}  Qh4+ {[%clk 0:01:33]} 33. g3 {[%clk 0:00:21]}  Qh2+ {[%clk 0:01:29]} 34. Ke3 {[%clk 0:00:17]}  Qg1+ {[%clk 0:01:26]} 35. Ke4 {[%clk 0:00:17]}  Rd8 {[%clk 0:01:20]} 36. Rf7+ {[%clk 0:00:17]}  Kg8 {[%clk 0:01:21]} 37. Qf5 {[%clk 0:00:12]}  Qb1+ {[%clk 0:01:03]} 38. Kf4 {[%clk 0:00:12]}  Qf1+ {[%clk 0:01:00]} 39. Ke3 {[%clk 0:00:11]}  Rxe5+ {[%clk 0:00:54]} 40. Qxe5 {[%clk 0:00:11]}  Qxf7 {[%clk 0:00:55]} 41. Rf2 {[%clk 0:00:10]}  Re8 {[%clk 0:00:53]} 42. Rxf7 {[%clk 0:00:10]}  Rxe5+ {[%clk 0:00:53]} 43. Kf4 {[%clk 0:00:10]}  Kxf7 {[%clk 0:00:54]} 44. Kxe5 {[%clk 0:00:11]}  Kg6 {[%clk 0:00:50]} 45. Kd6 {[%clk 0:00:11]}  Kg5 {[%clk 0:00:51]} 46. Kc7 {[%clk 0:00:11]}  Kg4 {[%clk 0:00:52]} 47. Kxb7 {[%clk 0:00:11]}  Kxg3 {[%clk 0:00:52]} 48. c4 {[%clk 0:00:12]}  h5 {[%clk 0:00:53]} 49. b5 {[%clk 0:00:12]}  cxb5 {[%clk 0:00:53]} 50. c5 {[%clk 0:00:13]}  h4 {[%clk 0:00:53]} 51. c6 {[%clk 0:00:14]}  h3 {[%clk 0:00:54]} 52. c7 {[%clk 0:00:14]}  h2 {[%clk 0:00:55]} 53. c8=Q {[%clk 0:00:15]}  h1=Q+ {[%clk 0:00:56]} 54. Kxa7 {[%clk 0:00:16]}  Qb1 {[%clk 0:00:56]} 55. Qc3+ {[%clk 0:00:14]}  Kf2 {[%clk 0:00:56]} 56. Qb3 {[%clk 0:00:13]}  Qf5 {[%clk 0:00:42]} 57. Ka6 {[%clk 0:00:13]}  Qc8+ {[%clk 0:00:32]} 58. Kxb5 {[%clk 0:00:13]}  Qb7+ {[%clk 0:00:32]} 59. Kc4 {[%clk 0:00:14]}  Qc6+ {[%clk 0:00:31]} 60. Kb4 {[%clk 0:00:14]}  Qb6+ {[%clk 0:00:31]} 61. Kc3 {[%clk 0:00:15]}  Qc5+ {[%clk 0:00:30]} 62. Kb2 {[%clk 0:00:16]}  Qa7 {[%clk 0:00:24]} 63. a4 {[%clk 0:00:15]}  Ke2 {[%clk 0:00:24]} 64. Qb5+ {[%clk 0:00:14]}  Kd2 {[%clk 0:00:24]} 65. Kb3 {[%clk 0:00:14]}  Ke3 {[%clk 0:00:19]} 66. Kb4 {[%clk 0:00:13]}  Qd4+ {[%clk 0:00:18]} 67. Qc4 {[%clk 0:00:14]}  Qb6+ {[%clk 0:00:18]} 68. Ka3 {[%clk 0:00:11]}  Qd6+ {[%clk 0:00:16]} 69. Qb4 {[%clk 0:00:12]}  Qa6 {[%clk 0:00:13]} 70. Qb5 {[%clk 0:00:11]}  Qa8 {[%clk 0:00:12]} 71. a5 {[%clk 0:00:12]}  Kd4 {[%clk 0:00:13]} 72. Qb6+ {[%clk 0:00:12]}  Kc4 {[%clk 0:00:12]} 73. Qb4+ {[%clk 0:00:11]}  Kd5 {[%clk 0:00:12]} 74. Qb5+ {[%clk 0:00:11]}  Kd6 {[%clk 0:00:11]} 75. Ka4 {[%clk 0:00:10]}  Qe4+ {[%clk 0:00:10]} 76. Kb3 {[%clk 0:00:10]}  Qe3+ {[%clk 0:00:10]} 77. Kc2 {[%clk 0:00:09]}  Qf2+ {[%clk 0:00:10]} 78. Kc3 {[%clk 0:00:09]}  Qe3+ {[%clk 0:00:10]} 79. Kb4 {[%clk 0:00:10]}  Qd4+ {[%clk 0:00:09]} 80. Kb3 {[%clk 0:00:10]}  Qd1+ {[%clk 0:00:09]} 81. Ka2 {[%clk 0:00:10]}  Qc2+ {[%clk 0:00:09]} 82. Ka3 {[%clk 0:00:10]}  Qc1+ {[%clk 0:00:09]} 83. Kb4 {[%clk 0:00:10]}  Qb2+ {[%clk 0:00:10]} 84. Kc4 {[%clk 0:00:09]}  Qe2+ {[%clk 0:00:10]} 85. Kb4 {[%clk 0:00:09]}  Qb2+ {[%clk 0:00:10]} 86. Ka4 {[%clk 0:00:10]}  Qa2+ {[%clk 0:00:10]} 87. Kb4 {[%clk 0:00:10]}  Qb2+ {[%clk 0:00:10]} 1/2-1/2


[Site "https://www.chess.com"]

[Event "Titled Tuesday Blitz June 29 2021"]
[White "partiallySquared"]
[Black "Ashedu66"]
[WhiteElo "2449"]
[BlackElo "2224"]
[Result "1-0"]
[Round "11"]
[TimeControl "180+1"]
[Date "2021.06.29"]
[WhiteClock "0:00:13"]
[BlackClock "0:00:03"]

1. d4 {[%clk 0:03:00]}  d6 {[%clk 0:02:57]} 2. Nf3 {[%clk 0:03:01]}  Bg4 {[%clk 0:02:56]} 3. Nbd2 {[%clk 0:02:59]}  Nf6 {[%clk 0:02:54]} 4. h3 {[%clk 0:02:58]}  Bh5 {[%clk 0:02:54]} 5. e4 {[%clk 0:02:54]}  e6 {[%clk 0:02:51]} 6. g4 {[%clk 0:02:50]}  Bg6 {[%clk 0:02:51]} 7. Qe2 {[%clk 0:02:50]}  Be7 {[%clk 0:02:49]} 8. Bg2 {[%clk 0:02:49]}  Nbd7 {[%clk 0:02:27]} 9. Nh4 {[%clk 0:02:30]}  e5 {[%clk 0:02:04]} 10. Nxg6 {[%clk 0:02:21]}  hxg6 {[%clk 0:02:04]} 11. Nf3 {[%clk 0:02:20]}  c6 {[%clk 0:02:02]} 12. Bd2 {[%clk 0:02:13]}  Qb6 {[%clk 0:02:00]} 13. Bc3 {[%clk 0:02:10]}  Qc7 {[%clk 0:01:59]} 14. O-O-O {[%clk 0:02:08]}  O-O-O {[%clk 0:01:57]} 15. Ng5 {[%clk 0:02:03]}  Rhf8 {[%clk 0:01:56]} 16. f4 {[%clk 0:02:00]}  exf4 {[%clk 0:01:52]} 17. Bd2 {[%clk 0:01:56]}  Nd5 {[%clk 0:01:15]} 18. exd5 {[%clk 0:01:45]}  Bxg5 {[%clk 0:01:14]} 19. dxc6 {[%clk 0:01:44]}  bxc6 {[%clk 0:01:13]} 20. h4 {[%clk 0:01:35]}  Bf6 {[%clk 0:01:08]} 21. Bxf4 {[%clk 0:01:28]}  Rfe8 {[%clk 0:01:05]} 22. Qa6+ {[%clk 0:01:24]}  Qb7 {[%clk 0:01:03]} 23. Qxc6+ {[%clk 0:01:20]}  Qxc6 {[%clk 0:00:57]} 24. Bxc6 {[%clk 0:01:20]}  Kc7 {[%clk 0:00:56]} 25. Bf3 {[%clk 0:01:11]}  Nb6 {[%clk 0:00:52]} 26. g5 {[%clk 0:01:07]}  Be7 {[%clk 0:00:52]} 27. b3 {[%clk 0:01:05]}  Bf8 {[%clk 0:00:46]} 28. c4 {[%clk 0:01:03]}  Kc8 {[%clk 0:00:44]} 29. Bg4+ {[%clk 0:00:57]}  Kb7 {[%clk 0:00:43]} 30. Rhf1 {[%clk 0:00:48]}  Ka6 {[%clk 0:00:29]} 31. Rde1 {[%clk 0:00:31]}  f5 {[%clk 0:00:26]} 32. Bf3 {[%clk 0:00:27]}  d5 {[%clk 0:00:19]} 33. c5 {[%clk 0:00:27]}  Nc8 {[%clk 0:00:16]} 34. b4 {[%clk 0:00:24]}  Kb5 {[%clk 0:00:15]} 35. a3 {[%clk 0:00:24]}  Ne7 {[%clk 0:00:14]} 36. Kb2 {[%clk 0:00:22]}  Nc6 {[%clk 0:00:13]} 37. Kc3 {[%clk 0:00:19]}  a5 {[%clk 0:00:07]} 38. a4+ {[%clk 0:00:12]}  Kxa4 {[%clk 0:00:06]} 39. Ra1+ {[%clk 0:00:12]}  Kb5 {[%clk 0:00:06]} 40. bxa5 {[%clk 0:00:13]}  Ka6 {[%clk 0:00:03]} 41. Rfb1 {[%clk 0:00:13]} 1-0


[Site "https://www.chess.com"]

[Event "Titled Tuesday Blitz June 29 2021"]
[White "rynos0411"]
[Black "ChessyInstinct"]
[WhiteElo "2442"]
[BlackElo "2320"]
[Result "0-1"]
[Round "11"]
[TimeControl "180+1"]
[Date "2021.06.29"]
[WhiteClock "0:00:05"]
[BlackClock "0:00:03"]

1. e4 {[%clk 0:03:00]}  e5 {[%clk 0:02:56]} 2. Nf3 {[%clk 0:03:00]}  Nc6 {[%clk 0:02:52]} 3. d4 {[%clk 0:02:59]}  exd4 {[%clk 0:02:51]} 4. Nxd4 {[%clk 0:03:00]}  Nf6 {[%clk 0:02:51]} 5. Nxc6 {[%clk 0:03:00]}  bxc6 {[%clk 0:02:52]} 6. e5 {[%clk 0:03:01]}  Qe7 {[%clk 0:02:50]} 7. Qe2 {[%clk 0:03:01]}  Nd5 {[%clk 0:02:49]} 8. h4 {[%clk 0:02:55]}  h6 {[%clk 0:02:33]} 9. c4 {[%clk 0:02:50]}  Ba6 {[%clk 0:02:32]} 10. b3 {[%clk 0:02:42]}  g6 {[%clk 0:02:30]} 11. Qe4 {[%clk 0:02:14]}  Bg7 {[%clk 0:02:23]} 12. Bb2 {[%clk 0:01:47]}  Nf6 {[%clk 0:01:48]} 13. Qe2 {[%clk 0:01:17]}  Ng4 {[%clk 0:01:30]} 14. Qxg4 {[%clk 0:01:11]}  Bxe5 {[%clk 0:01:30]} 15. Bxe5 {[%clk 0:01:10]}  Qxe5+ {[%clk 0:01:29]} 16. Qe2 {[%clk 0:01:10]}  Qxe2+ {[%clk 0:01:20]} 17. Bxe2 {[%clk 0:01:08]}  O-O-O {[%clk 0:01:14]} 18. Nc3 {[%clk 0:00:57]}  Rhe8 {[%clk 0:01:11]} 19. O-O-O {[%clk 0:00:55]}  d5 {[%clk 0:01:10]} 20. Rhe1 {[%clk 0:00:49]}  dxc4 {[%clk 0:00:56]} 21. Bxc4 {[%clk 0:00:46]}  Bxc4 {[%clk 0:00:35]} 22. bxc4 {[%clk 0:00:44]}  Rxe1 {[%clk 0:00:35]} 23. Rxe1 {[%clk 0:00:44]}  Rd3 {[%clk 0:00:36]} 24. Kc2 {[%clk 0:00:43]}  Rd4 {[%clk 0:00:35]} 25. Re4 {[%clk 0:00:43]}  Rd6 {[%clk 0:00:32]} 26. g4 {[%clk 0:00:34]}  Rf6 {[%clk 0:00:31]} 27. f4 {[%clk 0:00:33]}  g5 {[%clk 0:00:31]} 28. hxg5 {[%clk 0:00:32]}  hxg5 {[%clk 0:00:32]} 29. f5 {[%clk 0:00:33]}  Rh6 {[%clk 0:00:31]} 30. Ne2 {[%clk 0:00:33]}  Rh2 {[%clk 0:00:27]} 31. Kb3 {[%clk 0:00:32]}  Kd7 {[%clk 0:00:24]} 32. Nd4 {[%clk 0:00:31]}  c5 {[%clk 0:00:23]} 33. Nf3 {[%clk 0:00:31]}  Rh3 {[%clk 0:00:23]} 34. Re3 {[%clk 0:00:30]}  Kc8 {[%clk 0:00:20]} 35. Kc3 {[%clk 0:00:27]}  Rg3 {[%clk 0:00:19]} 36. Kd3 {[%clk 0:00:25]}  Rxg4 {[%clk 0:00:19]} 37. Ne5 {[%clk 0:00:19]}  Rd4+ {[%clk 0:00:19]} 38. Kc3 {[%clk 0:00:19]}  f6 {[%clk 0:00:18]} 39. Nc6 {[%clk 0:00:17]}  Rf4 {[%clk 0:00:17]} 40. Re6 {[%clk 0:00:15]}  Rxf5 {[%clk 0:00:11]} 41. Re7 {[%clk 0:00:09]}  Rf3+ {[%clk 0:00:09]} 42. Kd2 {[%clk 0:00:10]}  Rf2+ {[%clk 0:00:04]} 43. Ke3 {[%clk 0:00:10]}  Rxa2 {[%clk 0:00:05]} 44. Rf7 {[%clk 0:00:09]}  Kb7 {[%clk 0:00:02]} 45. Nd8+ {[%clk 0:00:09]}  Kc8 {[%clk 0:00:02]} 46. Ne6 {[%clk 0:00:10]}  Ra3+ {[%clk 0:00:01]} 47. Kd2 {[%clk 0:00:09]}  Ra6 {[%clk 0:00:01]} 48. Nxc7 {[%clk 0:00:09]}  Rd6+ {[%clk 0:00:01]} 49. Kc3 {[%clk 0:00:09]}  Rd7 {[%clk 0:00:02]} 50. Rxd7 {[%clk 0:00:06]}  Kxd7 {[%clk 0:00:03]} 51. Nd5 {[%clk 0:00:07]}  f5 {[%clk 0:00:02]} 52. Kd3 {[%clk 0:00:07]}  Ke6 {[%clk 0:00:02]} 53. Ke3 {[%clk 0:00:07]}  Ke5 {[%clk 0:00:02]} 54. Nc3 {[%clk 0:00:07]}  g4 {[%clk 0:00:03]} 55. Nd5 {[%clk 0:00:07]}  g3 {[%clk 0:00:02]} 56. Nf4 {[%clk 0:00:07]}  a5 {[%clk 0:00:02]} 57. Nd3+ {[%clk 0:00:07]}  Kd6 {[%clk 0:00:02]} 58. Kf3 {[%clk 0:00:08]}  a4 {[%clk 0:00:02]} 59. Kxg3 {[%clk 0:00:08]}  a3 {[%clk 0:00:03]} 60. Kf4 {[%clk 0:00:08]}  a2 {[%clk 0:00:03]} 61. Kxf5 {[%clk 0:00:04]}  a1=Q {[%clk 0:00:03]} 62. Ke4 {[%clk 0:00:05]}  Qd4+ {[%clk 0:00:03]} 0-1


[Site "https://www.chess.com"]

[Event "Titled Tuesday Blitz June 29 2021"]
[White "sau6on"]
[Black "Kretov_Evgenij"]
[WhiteElo "2410"]
[BlackElo "2617"]
[Result "1-0"]
[Round "11"]
[TimeControl "180+1"]
[Date "2021.06.29"]
[WhiteClock "0:00:06"]
[BlackClock "0:00:13"]

1. d4 {[%clk 0:03:00]}  Nf6 {[%clk 0:02:59]} 2. c4 {[%clk 0:03:00]}  c5 {[%clk 0:02:59]} 3. d5 {[%clk 0:03:00]}  e5 {[%clk 0:02:59]} 4. Nc3 {[%clk 0:02:59]}  d6 {[%clk 0:03:00]} 5. e4 {[%clk 0:02:58]}  Be7 {[%clk 0:03:00]} 6. Nf3 {[%clk 0:02:57]}  O-O {[%clk 0:03:01]} 7. Bd3 {[%clk 0:02:55]}  Ne8 {[%clk 0:03:01]} 8. h3 {[%clk 0:02:52]}  Nd7 {[%clk 0:03:02]} 9. g4 {[%clk 0:02:49]}  g6 {[%clk 0:03:01]} 10. Bh6 {[%clk 0:02:49]}  Ng7 {[%clk 0:03:01]} 11. Qd2 {[%clk 0:02:47]}  Nf6 {[%clk 0:02:59]} 12. Ne2 {[%clk 0:02:42]}  Kh8 {[%clk 0:02:59]} 13. Ng3 {[%clk 0:02:42]}  Ng8 {[%clk 0:02:59]} 14. Be3 {[%clk 0:02:09]}  a6 {[%clk 0:02:59]} 15. a4 {[%clk 0:02:04]}  Rb8 {[%clk 0:02:56]} 16. Rg1 {[%clk 0:01:30]}  Bd7 {[%clk 0:02:52]} 17. Nf5 {[%clk 0:01:27]}  gxf5 {[%clk 0:02:43]} 18. gxf5 {[%clk 0:01:28]}  f6 {[%clk 0:02:31]} 19. Ke2 {[%clk 0:01:11]}  b5 {[%clk 0:02:31]} 20. Rg4 {[%clk 0:00:57]}  bxc4 {[%clk 0:02:28]} 21. Bxc4 {[%clk 0:00:56]}  Nxf5 {[%clk 0:02:21]} 22. exf5 {[%clk 0:00:55]}  Bxf5 {[%clk 0:02:21]} 23. Rg3 {[%clk 0:00:53]}  Qb6 {[%clk 0:02:14]} 24. b3 {[%clk 0:00:51]}  Rf7 {[%clk 0:02:09]} 25. Rag1 {[%clk 0:00:33]}  Bd7 {[%clk 0:02:07]} 26. Bh6 {[%clk 0:00:27]}  Bxa4 {[%clk 0:01:17]} 27. Rg7 {[%clk 0:00:18]}  Bxb3 {[%clk 0:00:58]} 28. Bxb3 {[%clk 0:00:17]}  Qxb3 {[%clk 0:00:39]} 29. Rxf7 {[%clk 0:00:17]}  Qc4+ {[%clk 0:00:39]} 30. Qd3 {[%clk 0:00:17]}  Rb2+ {[%clk 0:00:38]} 31. Nd2 {[%clk 0:00:17]}  Qxd3+ {[%clk 0:00:28]} 32. Kxd3 {[%clk 0:00:18]}  Nxh6 {[%clk 0:00:29]} 33. Rxe7 {[%clk 0:00:17]}  Rb8 {[%clk 0:00:27]} 34. Rgg7 {[%clk 0:00:15]}  Nf5 {[%clk 0:00:27]} 35. Rxh7+ {[%clk 0:00:15]}  Kg8 {[%clk 0:00:28]} 36. Rd7 {[%clk 0:00:15]}  a5 {[%clk 0:00:27]} 37. Ne4 {[%clk 0:00:14]}  Rf8 {[%clk 0:00:25]} 38. Nxd6 {[%clk 0:00:13]}  e4+ {[%clk 0:00:18]} 39. Nxe4 {[%clk 0:00:11]}  a4 {[%clk 0:00:18]} 40. Ng3 {[%clk 0:00:07]}  c4+ {[%clk 0:00:16]} 41. Kc3 {[%clk 0:00:07]}  Rb8 {[%clk 0:00:13]} 42. Nxf5 {[%clk 0:00:06]}  Rb3+ {[%clk 0:00:13]} 43. Kxc4 {[%clk 0:00:06]} 1-0


[Site "https://www.chess.com"]

[Event "Titled Tuesday Blitz June 29 2021"]
[White "switlave"]
[Black "JiaHaoxiang"]
[WhiteElo "2497"]
[BlackElo "2655"]
[Result "0-1"]
[Round "11"]
[TimeControl "180+1"]
[Date "2021.06.29"]
[WhiteClock "0:01:06"]
[BlackClock "0:00:50"]

1. e4 {[%clk 0:03:00]}  c5 {[%clk 0:02:59]} 2. Nf3 {[%clk 0:02:58]}  e6 {[%clk 0:03:00]} 3. d4 {[%clk 0:02:58]}  cxd4 {[%clk 0:03:01]} 4. Nxd4 {[%clk 0:02:59]}  a6 {[%clk 0:03:01]} 5. Nc3 {[%clk 0:02:59]}  Qc7 {[%clk 0:03:01]} 6. a3 {[%clk 0:02:58]}  b5 {[%clk 0:02:58]} 7. Be3 {[%clk 0:02:58]}  Bb7 {[%clk 0:02:58]} 8. Qd2 {[%clk 0:02:55]}  Nf6 {[%clk 0:02:58]} 9. f3 {[%clk 0:02:53]}  Be7 {[%clk 0:02:40]} 10. g4 {[%clk 0:02:48]}  h6 {[%clk 0:02:34]} 11. Rg1 {[%clk 0:02:38]}  d5 {[%clk 0:02:30]} 12. exd5 {[%clk 0:02:34]}  Nxd5 {[%clk 0:02:30]} 13. Nxd5 {[%clk 0:02:33]}  Bxd5 {[%clk 0:02:31]} 14. O-O-O {[%clk 0:02:33]}  Nc6 {[%clk 0:02:13]} 15. Nf5 {[%clk 0:02:31]}  Bxf3 {[%clk 0:02:10]} 16. Nxg7+ {[%clk 0:02:30]}  Kf8 {[%clk 0:02:10]} 17. Bxh6 {[%clk 0:02:29]}  Kg8 {[%clk 0:02:05]} 18. Bf4 {[%clk 0:02:22]}  e5 {[%clk 0:01:39]} 19. Bg5 {[%clk 0:01:59]}  Kxg7 {[%clk 0:01:32]} 20. Bxe7 {[%clk 0:01:52]}  Qxe7 {[%clk 0:01:31]} 21. g5 {[%clk 0:01:51]}  Bxd1 {[%clk 0:01:29]} 22. g6 {[%clk 0:01:50]}  f6 {[%clk 0:01:24]} 23. h4 {[%clk 0:01:46]}  Rad8 {[%clk 0:01:18]} 24. Qg2 {[%clk 0:01:43]}  Bh5 {[%clk 0:01:13]} 25. Bd3 {[%clk 0:01:39]}  Nd4 {[%clk 0:01:09]} 26. Rf1 {[%clk 0:01:32]}  Rhe8 {[%clk 0:01:01]} 27. c3 {[%clk 0:01:21]}  e4 {[%clk 0:00:54]} 28. Bc2 {[%clk 0:01:14]}  Nxc2 {[%clk 0:00:52]} 29. Qxc2 {[%clk 0:01:12]}  e3 {[%clk 0:00:53]} 30. Re1 {[%clk 0:01:10]}  e2 {[%clk 0:00:50]} 31. Kb1 {[%clk 0:01:05]}  Rd1+ {[%clk 0:00:50]} 32. Rxd1 {[%clk 0:01:06]}  exd1=Q+ {[%clk 0:00:50]} 33. Qxd1 {[%clk 0:01:07]}  Bxd1 {[%clk 0:00:50]} 34. Ka2 {[%clk 0:01:08]}  Qe6+ {[%clk 0:00:50]} 35. c4 {[%clk 0:01:06]}  Qxc4+ {[%clk 0:00:50]} 36. Ka1 {[%clk 0:01:06]}  Bb3 {[%clk 0:00:50]} 37. h5 {[%clk 0:01:06]}  Qc1# {[%clk 0:00:50]} 0-1


[Site "https://www.chess.com"]

[Event "Titled Tuesday Blitz June 29 2021"]
[White "viktorskliarov"]
[Black "DianaLomaia1"]
[WhiteElo "2542"]
[BlackElo "2404"]
[Result "1-0"]
[Round "11"]
[TimeControl "180+1"]
[Date "2021.06.29"]
[WhiteClock "0:00:20"]
[BlackClock "0:01:10"]

1. e4 {[%clk 0:02:59]}  d5 {[%clk 0:02:59]} 2. exd5 {[%clk 0:02:58]}  Qxd5 {[%clk 0:03:00]} 3. Nc3 {[%clk 0:02:59]}  Qd6 {[%clk 0:03:00]} 4. d4 {[%clk 0:02:59]}  Nf6 {[%clk 0:03:00]} 5. Nf3 {[%clk 0:02:59]}  g6 {[%clk 0:03:00]} 6. g3 {[%clk 0:02:48]}  Bg7 {[%clk 0:02:59]} 7. Bf4 {[%clk 0:02:48]}  Qd8 {[%clk 0:02:59]} 8. Bg2 {[%clk 0:02:47]}  O-O {[%clk 0:02:59]} 9. O-O {[%clk 0:02:47]}  c6 {[%clk 0:02:59]} 10. Ne5 {[%clk 0:02:44]}  Be6 {[%clk 0:02:58]} 11. Re1 {[%clk 0:02:42]}  Re8 {[%clk 0:02:57]} 12. Qd2 {[%clk 0:02:35]}  Nd5 {[%clk 0:02:53]} 13. Nxd5 {[%clk 0:02:15]}  Bxd5 {[%clk 0:02:53]} 14. c4 {[%clk 0:02:14]}  Bxg2 {[%clk 0:02:52]} 15. Kxg2 {[%clk 0:02:15]}  Nd7 {[%clk 0:02:50]} 16. Rad1 {[%clk 0:01:58]}  Nf6 {[%clk 0:02:47]} 17. h3 {[%clk 0:01:54]}  Qb6 {[%clk 0:02:43]} 18. b3 {[%clk 0:01:48]}  Rad8 {[%clk 0:02:42]} 19. Qe3 {[%clk 0:01:46]}  e6 {[%clk 0:02:35]} 20. g4 {[%clk 0:01:39]}  a5 {[%clk 0:02:31]} 21. Qg3 {[%clk 0:01:23]}  Rxd4 {[%clk 0:02:25]} 22. Be3 {[%clk 0:01:20]}  Rxd1 {[%clk 0:02:25]} 23. Bxb6 {[%clk 0:01:06]}  Rxe1 {[%clk 0:02:25]} 24. Bxa5 {[%clk 0:01:06]}  Ra8 {[%clk 0:02:21]} 25. Bxe1 {[%clk 0:01:05]}  Rxa2 {[%clk 0:02:16]} 26. Qd3 {[%clk 0:01:00]}  Ne8 {[%clk 0:02:06]} 27. Qd7 {[%clk 0:00:52]}  Bxe5 {[%clk 0:02:06]} 28. Qxe8+ {[%clk 0:00:52]}  Kg7 {[%clk 0:02:06]} 29. Qd7 {[%clk 0:00:49]}  Re2 {[%clk 0:02:00]} 30. Kf1 {[%clk 0:00:48]}  Rb2 {[%clk 0:01:51]} 31. Qxb7 {[%clk 0:00:47]}  Rb1 {[%clk 0:01:52]} 32. Ke2 {[%clk 0:00:47]}  Rb2+ {[%clk 0:01:50]} 33. Kd3 {[%clk 0:00:46]}  c5 {[%clk 0:01:50]} 34. Bd2 {[%clk 0:00:25]}  Rb1 {[%clk 0:01:43]} 35. f4 {[%clk 0:00:25]}  Bd4 {[%clk 0:01:41]} 36. g5 {[%clk 0:00:24]}  Rh1 {[%clk 0:01:37]} 37. b4 {[%clk 0:00:23]}  Rxh3+ {[%clk 0:01:36]} 38. Kc2 {[%clk 0:00:23]}  Rh2 {[%clk 0:01:32]} 39. Qe4 {[%clk 0:00:22]}  Bg1 {[%clk 0:01:23]} 40. b5 {[%clk 0:00:21]}  Bd4 {[%clk 0:01:14]} 41. b6 {[%clk 0:00:21]}  Rh1 {[%clk 0:01:10]} 42. Qxh1 {[%clk 0:00:20]} 1-0


[Site "https://www.chess.com"]

[Event "Titled Tuesday Blitz June 29 2021"]
[White "volunteers1998"]
[Black "AsaHoffmann"]
[WhiteElo "2252"]
[BlackElo "2354"]
[Result "1-0"]
[Round "11"]
[TimeControl "180+1"]
[Date "2021.06.29"]
[WhiteClock "0:00:50"]
[BlackClock "0:01:20"]

1. e4 {[%clk 0:03:00]}  d6 {[%clk 0:02:55]} 2. d4 {[%clk 0:03:00]}  Nf6 {[%clk 0:02:48]} 3. Nc3 {[%clk 0:03:00]}  c6 {[%clk 0:02:48]} 4. f4 {[%clk 0:02:56]}  Qa5 {[%clk 0:02:46]} 5. Bd3 {[%clk 0:02:48]}  e5 {[%clk 0:02:45]} 6. Nf3 {[%clk 0:02:45]}  exd4 {[%clk 0:02:44]} 7. Nxd4 {[%clk 0:02:44]}  Qb6 {[%clk 0:02:43]} 8. Be3 {[%clk 0:02:32]}  Ng4 {[%clk 0:02:40]} 9. Bg1 {[%clk 0:02:28]}  Qxb2 {[%clk 0:02:39]} 10. Nde2 {[%clk 0:02:24]}  g6 {[%clk 0:02:31]} 11. Bd4 {[%clk 0:02:16]}  Rg8 {[%clk 0:02:14]} 12. Nb5 {[%clk 0:02:07]}  Qxb5 {[%clk 0:02:08]} 13. Bxb5 {[%clk 0:02:03]}  cxb5 {[%clk 0:02:08]} 14. O-O {[%clk 0:01:55]}  Nc6 {[%clk 0:02:07]} 15. Qd3 {[%clk 0:01:45]}  a6 {[%clk 0:02:00]} 16. c4 {[%clk 0:01:39]}  b4 {[%clk 0:01:49]} 17. h3 {[%clk 0:01:31]}  Nh6 {[%clk 0:01:47]} 18. f5 {[%clk 0:01:23]}  gxf5 {[%clk 0:01:45]} 19. exf5 {[%clk 0:01:20]}  Bd7 {[%clk 0:01:33]} 20. Qe3+ {[%clk 0:01:14]}  Kd8 {[%clk 0:01:28]} 21. Bb6+ {[%clk 0:01:14]}  Kc8 {[%clk 0:01:28]} 22. Rad1 {[%clk 0:01:04]}  Nxf5 {[%clk 0:01:22]} 23. Rxf5 {[%clk 0:00:51]}  Bxf5 {[%clk 0:01:20]} 24. Qe8+ {[%clk 0:00:50]} 1-0


[Site "https://www.chess.com"]

[Event "Titled Tuesday Blitz June 29 2021"]
[White "zuma2910"]
[Black "1977Ivan"]
[WhiteElo "2553"]
[BlackElo "2731"]
[Result "1-0"]
[Round "11"]
[TimeControl "180+1"]
[Date "2021.06.29"]
[WhiteClock "0:00:11"]
[BlackClock "0:00:09"]

1. d4 {[%clk 0:03:00]}  Nf6 {[%clk 0:02:59]} 2. Nf3 {[%clk 0:02:59]}  g6 {[%clk 0:02:59]} 3. c4 {[%clk 0:02:58]}  Bg7 {[%clk 0:02:58]} 4. Nc3 {[%clk 0:02:58]}  d6 {[%clk 0:02:57]} 5. Bf4 {[%clk 0:02:58]}  O-O {[%clk 0:02:54]} 6. e3 {[%clk 0:02:57]}  c5 {[%clk 0:02:47]} 7. Be2 {[%clk 0:02:56]}  Nh5 {[%clk 0:02:45]} 8. Bg5 {[%clk 0:02:56]}  h6 {[%clk 0:02:44]} 9. Bh4 {[%clk 0:02:56]}  g5 {[%clk 0:02:36]} 10. Bg3 {[%clk 0:02:36]}  Nxg3 {[%clk 0:02:33]} 11. hxg3 {[%clk 0:02:35]}  Bf5 {[%clk 0:02:06]} 12. dxc5 {[%clk 0:02:30]}  dxc5 {[%clk 0:02:05]} 13. O-O {[%clk 0:02:29]}  Nc6 {[%clk 0:02:04]} 14. Qd5 {[%clk 0:02:20]}  e6 {[%clk 0:01:56]} 15. Qxc5 {[%clk 0:02:14]}  Bxc3 {[%clk 0:01:43]} 16. bxc3 {[%clk 0:02:12]}  Qa5 {[%clk 0:01:44]} 17. Qb5 {[%clk 0:01:48]}  Rfc8 {[%clk 0:01:35]} 18. Nd4 {[%clk 0:01:45]}  Be4 {[%clk 0:01:15]} 19. Nxc6 {[%clk 0:01:32]}  Qxb5 {[%clk 0:01:14]} 20. Ne7+ {[%clk 0:01:20]}  Kf8 {[%clk 0:01:13]} 21. cxb5 {[%clk 0:01:20]}  Kxe7 {[%clk 0:01:14]} 22. c4 {[%clk 0:01:21]}  Rc5 {[%clk 0:01:10]} 23. Rfd1 {[%clk 0:01:19]}  Rac8 {[%clk 0:01:03]} 24. Rd4 {[%clk 0:01:19]}  Bg6 {[%clk 0:00:59]} 25. Rad1 {[%clk 0:01:17]}  R5c7 {[%clk 0:00:59]} 26. R1d2 {[%clk 0:01:12]}  b6 {[%clk 0:00:59]} 27. f4 {[%clk 0:01:08]}  f6 {[%clk 0:00:59]} 28. Kf2 {[%clk 0:01:01]}  Bf7 {[%clk 0:00:59]} 29. Rd6 {[%clk 0:00:59]}  Bg6 {[%clk 0:00:44]} 30. Bg4 {[%clk 0:00:52]}  f5 {[%clk 0:00:39]} 31. Be2 {[%clk 0:00:47]}  Be8 {[%clk 0:00:36]} 32. g4 {[%clk 0:00:38]}  Bg6 {[%clk 0:00:29]} 33. gxf5 {[%clk 0:00:33]}  Bxf5 {[%clk 0:00:30]} 34. g4 {[%clk 0:00:33]}  Be4 {[%clk 0:00:30]} 35. R2d4 {[%clk 0:00:29]}  Bb1 {[%clk 0:00:20]} 36. a4 {[%clk 0:00:16]}  Bc2 {[%clk 0:00:18]} 37. Kg3 {[%clk 0:00:13]}  Rg8 {[%clk 0:00:14]} 38. a5 {[%clk 0:00:11]}  bxa5 {[%clk 0:00:13]} 39. Ra6 {[%clk 0:00:11]}  a4 {[%clk 0:00:13]} 40. Rdd6 {[%clk 0:00:11]}  gxf4+ {[%clk 0:00:09]} 41. exf4 {[%clk 0:00:11]} 1-0